fUST/lending_fUST_20251019
["ID","MTS","AMOUNT","RATE_DAILY","PERIOD"]
[391780597,1760803218610,151.0,0.00024,120]
[391780598,1760803220034,151.0,0.000275,120]
[391780604,1760803728993,4304.18496485,0.00024,2]
[391780605,1760803729016,10000.01,0.00024,2]
[391780606,1760803729037,10000.01,0.00024,2]
[391780607,1760803729059,10000.01,0.00024,2]
[391780608,1760803729080,10000.01,0.00024,2]
[391780609,1760803729104,10000.01,0.00024,2]
[391780610,1760803729126,10000.01,0.00024,2]
[391780611,1760803729149,10000.01,0.00024,2]
[391780612,1760803729171,10000.01,0.00024,2]
[391780613,1760803729192,10000.01,0.00024,2]
[391780614,1760803733875,-406.28121596,0.00024,2]
[391780615,1760803736374,-151.9244829,0.00024,2]
[391780616,1760803740397,-298.9152902,0.00024,2]
[391780617,1760803742074,-202.23145693,0.00024,2]
[391780618,1760803743845,-270.19878931,0.00023999,2]
[391780619,1760803749364,-29.80121069,0.00023999,2]
[391780620,1760803749386,-191.11096803,0.00024,2]
[391780621,1760803751424,-227.56975376,0.00024,2]
[391780622,1760803756214,-326.184517,0.0002399,3]
[391780623,1760803757587,-167.875483,0.0002399,3]
[391780624,1760803757610,-102.32330631,0.00024,2]
[391780625,1760803760093,-200.23450353,0.00024,2]
[391780626,1760803762835,-5823.36618971,0.00024,2]
[391780627,1760803762874,-10000.01,0.00024,2]
[391780628,1760803762889,-10000.01,0.00024,2]
[391780629,1760803764336,-10000.01,0.00024,2]
[391780630,1760803764445,-10000.01,0.00024,2]
[391780631,1760803764560,-10000.01,0.00024,2]
[391780632,1760803764707,-10000.01,0.00024,2]
[391780633,1760803764817,-10000.01,0.00024,2]
[391780634,1760803765081,-10000.01,0.00024,2]
[391780635,1760803765183,-10000.01,0.00024,2]
[391780636,1760803767440,-247.03,0.0002399,3]
[391780637,1760803767479,-9505.95,0.00024,2]
[391780638,1760803767506,-10000.01,0.00024,2]
[391780639,1760803768027,-311.28302913,0.00024,2]
[391780640,1760803771903,-173.88846031,0.00024,2]
[391780641,1760803773423,-333.07785403,0.00024,2]
[391780642,1760803775529,-203.69683925,0.00024,2]
[391780643,1760803779035,-300.0,0.0002399,3]
[391780644,1760803780605,-300.0,0.0002399,3]
[391780645,1760803782062,-141.14,0.0002399,3]
[391780646,1760803782086,-357.79847604,0.00024,2]
[391780647,1760803782554,-10000.01,0.00024,2]
[391780648,1760803782818,-10000.01,0.00024,2]
[391780649,1760803782941,-10000.01,0.00024,2]
[391780650,1760803783166,-10000.01,0.00024,2]
[391780651,1760803783496,-10000.01,0.00024,2]
[391780652,1760803783630,-10000.01,0.00024,2]
[391780653,1760803783762,-10000.01,0.00024,2]
[391780654,1760803784320,-205.37319482,0.00024,2]
[391780655,1760803787008,-169.35806005,0.00024,2]
[391780656,1760803788466,-199.23471633,0.00024,2]
[391780657,1760803788495,-10000.01,0.00024,2]
[391780658,1760803788700,-10000.01,0.00024,2]
[391780659,1760803788851,-10000.01,0.00024,2]
[391780660,1760803793230,-1030.64193995,0.00024,2]
[391780661,1760803794653,-10000.01,0.00024,2]
[391780662,1760803795187,154.0,9.3e-07,2]
[391780663,1760803796290,-168.0,0.00024,2]
[391780664,1760803797495,-10000.01,0.00024,2]
[391780665,1760803797668,-10000.01,0.00024,2]
[391780666,1760803798022,-154.52866099,0.00024,2]
[391780667,1760803798053,-10000.01,0.00024,2]
[391780668,1760803800074,-212.21594892,0.00024,2]
[391780669,1760803800678,-846.709312,0.00024,2]
[391780670,1760803800702,-8306.591376,0.00024,2]
[391780671,1760803803160,1200.0,0.00023999,2]
[391780672,1760803805907,5000.0,0.00024,2]
[391780673,1760803818370,152.0,0.00024,120]
[391780674,1760803819744,152.0,0.000275,120]
[391780675,1760803829102,168.34280535,0.00024142,2]
[391780723,1760803831974,-300.0,0.00024478,2]
[391780725,1760803831984,-262.61079851,0.00024479,2]
[391780727,1760803831995,-49737.38920149,0.00024479,2]
[391780729,1760803832005,-300.0,0.00024479,20]
[391780731,1760803832014,-300.0,0.00024479,20]
[391780733,1760803832024,-300.0,0.00024479,20]
[391780735,1760803832033,-300.0,0.00024479,20]
[391780737,1760803832043,-300.0,0.00024479,20]
[391780739,1760803832052,-300.0,0.00024479,20]
[391780741,1760803832062,-300.0,0.00024479,20]
[391780743,1760803832071,-300.0,0.00024479,20]
[391780745,1760803832079,-300.0,0.00024479,20]
[391780747,1760803832089,-300.0,0.00024479,20]
[391780749,1760803832098,-300.0,0.00024479,20]
[391780752,1760803832108,-300.0,0.00024479,20]
[391780755,1760803832117,-300.0,0.00024479,20]
[391780757,1760803832127,-300.0,0.00024479,20]
[391780759,1760803832136,-300.0,0.00024479,20]
[391780761,1760803832145,-600.0,0.00024479,20]
[391780763,1760803832154,-988.12,0.0002536,3]
[391780765,1760803832164,-494.06,0.0002536,3]
[391780767,1760803832173,-772.25570433,0.000259,2]
[391780769,1760803832183,-239.0,0.00026,2]
[391780771,1760803832192,-1200.0,0.00026145,2]
[391780773,1760803832202,-420.0,0.00026532,2]
[391780775,1760803832211,-200.0,0.00026676,2]
[391780777,1760803832220,-458.75636,0.00026676,2]
[391780779,1760803832230,-720.0,0.00026927,30]
[391780781,1760803832240,-237.14414771,0.000275,2]
[391780783,1760803832250,-215.46823585,0.000275,2]
[391780785,1760803832259,-224.15544805,0.000275,2]
[391780787,1760803832269,-237.14414771,0.000278,2]
[391780789,1760803832278,-224.15544805,0.000278,2]
[391780791,1760803832287,-224.15544805,0.00028,2]
[391780793,1760803832297,-224.15544805,0.000283,2]
[391780795,1760803832307,-224.15544805,0.000286,2]
[391780797,1760803832316,-772.25570428,0.00028614,2]
[391780799,1760803832326,-179.64071856,0.00028648,2]
[391780801,1760803832336,-154.549134,0.00028666,20]
[391780803,1760803832346,-1692.75,0.000287,2]
[391780805,1760803832356,-154.549134,0.00028751,2]
[391780807,1760803832366,-587.0,0.00028758,2]
[391780809,1760803832375,-157.252713,0.00029549,20]
[391780811,1760803832385,-154.549134,0.00029549,20]
[391780813,1760803832395,-864.0,0.0002962,30]
[391780816,1760803832406,-157.252713,0.00030432,20]
[391780817,1760803832415,-155.022087,0.00030432,20]
[391780818,1760803832424,-154.549134,0.00030432,20]
[391780820,1760803832434,-153.0,0.00030438,2]
[391780822,1760803832443,-312.65866,0.000305,120]
[391780824,1760803832453,-403.66813555,0.00030873,2]
[391780826,1760803832463,-210.80330988,0.00030873,2]
[391780828,1760803832473,-500.0,0.00030874,2]
[391780830,1760803832482,-500.0,0.00030874,2]
[391780832,1760803832493,-547.64594994,0.00030874,2]
[391780834,1760803832502,-500.0,0.00030874,2]
[391780836,1760803832512,-500.0,0.00030874,2]
[391780838,1760803832521,-500.0,0.00030874,2]
[391780840,1760803832530,-500.0,0.00030874,2]
[391780842,1760803832539,-500.0,0.00030874,2]
[391780844,1760803832549,-500.0,0.00030874,2]
[391780846,1760803832558,-500.0,0.00030874,2]
[391780848,1760803832568,-500.0,0.00030874,2]
[391780850,1760803832578,-500.0,0.00030874,2]
[391780852,1760803832588,-500.0,0.00030874,2]
[391780854,1760803832597,-500.0,0.00030874,2]
[391780856,1760803832608,-500.0,0.00030874,2]
[391780858,1760803832617,-500.0,0.00030874,2]
[391780860,1760803832627,-202.89630048,0.00030874,2]
[391780862,1760803832637,-500.0,0.00030874,2]
[391780864,1760803832647,-500.0,0.00030874,2]
[391780866,1760803832658,-500.0,0.00030874,2]
[391780868,1760803832667,-500.0,0.00030874,2]
[391780870,1760803832677,-500.0,0.00030874,2]
[391780872,1760803832686,-500.0,0.00030874,2]
[391780873,1760803832695,-500.0,0.00030874,2]
[391780875,1760803832705,-500.0,0.00030874,2]
[391780877,1760803832715,-500.0,0.00030874,2]
[391780879,1760803832726,-500.0,0.00030874,2]
[391780881,1760803832736,-500.0,0.00030874,2]
[391780883,1760803832746,-500.0,0.00030874,2]
[391780886,1760803832756,-500.0,0.00030874,2]
[391780888,1760803832765,-500.0,0.00030874,2]
[391780890,1760803832775,-500.0,0.00030874,2]
[391780892,1760803832784,-500.0,0.00030874,2]
[391780893,1760803832797,-500.0,0.00030874,2]
[391780895,1760803832807,-500.0,0.00030874,2]
[391780897,1760803832817,-487.13747358,0.00030874,2]
[391780900,1760803832827,-160.0,0.00030911,2]
[391780902,1760803832838,-402.78104431,0.00030917,2]
[391780904,1760803832847,-170.88268886,0.00030943,2]
[391780905,1760803832857,-256.5849479,0.00030943,2]
[391780907,1760803832868,-12993.3472944,0.0003099,2]
[391780909,1760803832877,-1749.82622474,0.0003099,2]
[391780911,1760803832887,-6000.0,0.00030992,2]
[391780913,1760803832896,-179.031,0.00030992,27]
[391780915,1760803832906,-6000.0,0.00030993,2]
[391780917,1760803832916,-5000.0,0.00030995,2]
[391780919,1760803832926,-4788.59,0.00030995,2]
[391780921,1760803832935,-5530.0,0.00030996,2]
[391780937,1760803833071,-195.75643468,0.00030997,2]
[391780939,1760803833081,-152.0,0.000311,120]
[391780941,1760803833091,-500.0,0.00031148,2]
[391780943,1760803833100,-823.0,0.00031172,2]
[391780945,1760803833109,-885.48117794,0.00031193,7]
[391780947,1760803833119,-159.98423559,0.00031214,15]
[391780949,1760803833128,-156.88327755,0.00031214,15]
[391780951,1760803833138,-159.97,0.00031215,15]
[391780953,1760803833147,-216.99,0.00031215,15]
[391780955,1760803833157,-216.99,0.00031315,15]
[391780957,1760803833168,-772.25570428,0.00031329,2]
[391780959,1760803833177,-216.99,0.00031415,15]
[391780961,1760803833186,-500.0,0.00031422,2]
[391780963,1760803833196,-300.0,0.00031458,2]
[391780965,1760803833206,-216.99,0.00031515,15]
[391780967,1760803833215,-151.26,0.00031593,2]
[391780969,1760803833224,-262.513,0.00031593,2]
[391780971,1760803833235,-294.101,0.00031593,2]
[391780973,1760803833244,-982.0,0.00031593,2]
[391780975,1760803833254,-2162.0,0.00031593,2]
[391780977,1760803833265,-216.99,0.00031615,15]
[391780979,1760803833275,-500.0,0.00031696,2]
[391780981,1760803833284,-216.99,0.00031715,15]
[391780982,1760803833295,-216.99,0.00031815,15]
[391780983,1760803833305,-195.33426305,0.00031915,15]
[391780984,1760803833318,-21.65573695,0.00031915,15]
[391780985,1760803833328,-4788.59,0.00031954,4]
[391780986,1760803833338,-500.0,0.0003197,2]
[391780987,1760803833349,-216.99,0.00032015,15]
[391780988,1760803833359,-216.99,0.00032115,15]
[391780989,1760803833368,-312.65866,0.000322,120]
[391780990,1760803833379,-216.99,0.00032215,15]
[391780991,1760803833388,-500.0,0.00032244,2]
[391780992,1760803833398,-154.549134,0.00032297,2]
[391780994,1760803833408,-154.26,0.000323,3]
[391780995,1760803833426,-216.99,0.00032315,15]
[391780996,1760803833436,-216.99,0.00032415,15]
[391780997,1760803833446,-154.549134,0.000325,7]
[391780998,1760803833456,-216.99,0.00032515,15]
[391780999,1760803833466,-500.0,0.00032518,2]
[391781000,1760803833475,-462.81,0.00032569,3]
[391781001,1760803833485,-168.0,0.0003258,2]
[391781002,1760803833494,-1000.0,0.00032582,30]
[391781003,1760803833503,-216.99,0.00032615,15]
[391781004,1760803833513,-153.79,0.00032621,15]
[391781005,1760803833523,-168.0,0.00032686,2]
[391781006,1760803833532,-153.77,0.0003271,15]
[391781007,1760803833542,-151.4,0.0003271,15]
[391781008,1760803833551,-266.95,0.00032714,15]
[391781009,1760803833561,-216.99,0.00032715,15]
[391781010,1760803833570,-153.79,0.00032721,15]
[391781011,1760803833580,-1692.75,0.000328,2]
[391781012,1760803833590,-153.77,0.0003281,15]
[391781013,1760803833599,-151.4,0.0003281,15]
[391781014,1760803833609,-266.95,0.00032814,15]
[391781015,1760803833619,-216.99,0.00032815,15]
[391781016,1760803833629,-168.0,0.00032815,2]
[391781017,1760803833639,-168.0,0.0003282,2]
[391781018,1760803833650,-238.39888704,0.00032877,2]
[391781019,1760803833661,-168.0,0.0003289,2]
[391781020,1760803833671,-153.77,0.0003291,60]
[391781021,1760803833682,-151.4,0.0003291,60]
[391781022,1760803833691,-4788.59,0.00032913,120]
[391781023,1760803833701,-266.95,0.00032914,60]
[391781024,1760803833712,-216.99,0.00032915,60]
[391781025,1760803833721,-200.0,0.00032933,120]
[391781026,1760803833731,-153.86,0.0003301,60]
[391781027,1760803833741,-151.4,0.0003301,60]
[391781028,1760803833751,-266.95,0.00033014,60]
[391781029,1760803833761,-216.99,0.00033015,60]
[391781030,1760803833772,-154.549134,0.00033109,15]
[391781031,1760803833782,-151.4,0.0003311,60]
[391781032,1760803833795,-266.95,0.00033114,60]
[391781033,1760803833805,-216.99,0.00033115,60]
[391781034,1760803833815,-155.5330289,0.00033123,30]
[391781035,1760803833824,-168.0,0.0003316,7]
[391781036,1760803833835,-458.75636,0.00033165,2]
[391781037,1760803833844,-166.94723962,0.000332,117]
[391781038,1760803833855,-151.4,0.0003321,60]
[391781039,1760803833866,-266.95,0.00033214,60]
[391781040,1760803833876,-216.99,0.00033215,60]
[391781041,1760803833886,-12993.3472944,0.00033235,2]
[391781042,1760803833896,-1749.82622474,0.00033235,2]
[391781043,1760803833905,-500.0,0.00033273,5]
[391781044,1760803833916,-324.94049382,0.00033273,5]
[391781045,1760803833926,-502.54298867,0.00033273,5]
[391781046,1760803833935,-500.0,0.00033273,5]
[391781047,1760803833944,-340.0,0.00033275,2]
[391781048,1760803833955,-151.4,0.0003331,60]
[391781049,1760803833965,-266.95,0.00033314,60]
[391781050,1760803833975,-216.99,0.00033315,60]
[391781051,1760803833984,-155.5330289,0.00033315,30]
[391781052,1760803833993,-151.4,0.0003341,60]
[391781053,1760803834002,-266.95,0.00033414,60]
[391781054,1760803834012,-216.99,0.00033415,60]
[391781055,1760803834022,-155.5330289,0.00033479,30]
[391781056,1760803834031,-500.0,0.0003348,7]
[391781057,1760803834042,-151.4,0.0003351,60]
[391781058,1760803834051,-266.95,0.00033514,60]
[391781059,1760803834062,-216.99,0.00033515,60]
[391781060,1760803834071,-154.549134,0.00033554,15]
[391781061,1760803834081,-162.9393636,0.00033562,30]
[391781062,1760803834091,-162.9393636,0.00033562,30]
[391781063,1760803834101,-151.4,0.0003361,60]
[391781064,1760803834111,-266.95,0.00033614,60]
[391781065,1760803834120,-216.99,0.00033615,60]
[391781066,1760803834130,-155.5330289,0.00033644,30]
[391781067,1760803834139,-308.52,0.0003367,3]
[391781068,1760803834148,-1162.67737129,0.00033689,2]
[391781069,1760803834159,-788.88,0.000337,10]
[391781070,1760803834168,-151.4,0.0003371,60]
[391781071,1760803834178,-266.95,0.00033714,60]
[391781072,1760803834187,-216.99,0.00033715,60]
[391781073,1760803834196,-10700.11252976,0.0003373,2]
[391781074,1760803834206,-28679.06065198,0.00033741,3]
[391781075,1760803834215,-1152.0,0.00033787,2]
[391781076,1760803834224,-12993.3472944,0.00033798,2]
[391781077,1760803834233,-1749.82622474,0.00033798,2]
[391781078,1760803834243,-12500.0,0.00033799,10]
[391781079,1760803834252,-12500.0,0.00033808,10]
[391781080,1760803834262,-7578.69132832,0.00033808,10]
[391781081,1760803834271,-151.4,0.0003381,60]
[391781082,1760803834280,-266.95,0.00033814,60]
[391781083,1760803834290,-216.99,0.00033815,60]
[391781084,1760803834299,-25986.6945889,0.0003382,2]
[391781085,1760803834309,-3499.65244948,0.0003382,2]
[391781086,1760803834318,-1000.0,0.00033821,5]
[391781087,1760803834328,-1000.0,0.00033821,5]
[391781088,1760803834337,-168.0,0.00033826,2]
[391781089,1760803834347,-90953.431061,0.00033831,2]
[391781090,1760803834358,-12248.7835732,0.00033831,2]
[391781091,1760803834367,-256.0,0.00033835,2]
[391781092,1760803834377,-155.5330289,0.00033836,30]
[391781093,1760803834386,-370000.0,0.00033841,2]
[391781094,1760803834396,-151.0,0.00033841,30]
[391781095,1760803834405,-151.0,0.00033841,30]
[391781096,1760803834416,-151.0,0.00033841,30]
[391781097,1760803834425,-151.0,0.00033841,30]
[391781098,1760803834436,-151.0,0.00033841,30]
[391781099,1760803834445,-151.0,0.00033841,30]
[391781100,1760803834455,-151.0,0.00033841,30]
[391781101,1760803834468,-151.0,0.00033841,30]
[391781102,1760803834478,-151.0,0.00033841,30]
[391781103,1760803834488,-151.0,0.00033841,30]
[391781104,1760803834499,-151.0,0.00033841,30]
[391781105,1760803834509,-151.0,0.00033841,30]
[391781106,1760803834521,-235.563625,0.00033841,30]
[391781107,1760803834532,-151.0,0.00033841,30]
[391781108,1760803834542,-151.0,0.00033841,30]
[391781109,1760803834552,-166.94723962,0.00033862,119]
[391781110,1760803834561,-12993.3472944,0.0003387,2]
[391781111,1760803834571,-1749.82622474,0.0003387,2]
[391781112,1760803834580,-4788.59,0.00033872,120]
[391781113,1760803834590,-168.0,0.00033895,2]
[391781114,1760803834599,-2000.0,0.000339,11]
[391781115,1760803834609,-4616.91,0.000339,14]
[391781116,1760803834618,-312.65866,0.000339,120]
[391781117,1760803834627,-151.4,0.0003391,60]
[391781118,1760803834636,-266.95,0.00033914,60]
[391781119,1760803834646,-216.99,0.00033915,60]
[391781120,1760803834655,-150.0,0.0003395,2]
[391781121,1760803834667,-250.87,0.0003395,60]
[391781122,1760803834677,-376.3,0.0003395,60]
[391781123,1760803834686,-689.88,0.0003395,60]
[391781124,1760803834696,-689.87,0.0003395,60]
[391781125,1760803834706,-164.7295,0.00033953,2]
[391781126,1760803834715,-3588.0,0.00033954,60]
[391781127,1760803834725,-2325.97,0.00033955,2]
[391781128,1760803834734,-150.0,0.00033955,2]
[391781129,1760803834743,-150.0,0.00033955,10]
[391781130,1760803834753,-835.76,0.00033955,30]
[391781131,1760803834763,-168.0,0.00033956,2]
[391781132,1760803834772,-155.5330289,0.00034,30]
[391781133,1760803834782,-157.252713,0.00034,15]
[391781134,1760803834793,-155.022087,0.00034,15]
[391781135,1760803834803,-162.9393636,0.00034,30]
[391781136,1760803834812,-162.9393636,0.00034,30]
[391781137,1760803834822,-154.549134,0.00034,15]
[391781138,1760803834831,-151.4,0.0003401,60]
[391781139,1760803834843,-266.95,0.00034014,60]
[391781140,1760803834852,-216.99,0.00034015,60]
[391781141,1760803834863,-772.25570428,0.00034043,2]
[391781142,1760803834873,-151.4,0.0003411,60]
[391781143,1760803834884,-266.95,0.00034114,60]
[391781144,1760803834893,-216.99,0.00034115,60]
[391781145,1760803834903,-1162.67737126,0.00034119,2]
[391781146,1760803834914,-155.5330289,0.00034192,30]
[391781147,1760803834923,-151.4,0.0003421,60]
[391781148,1760803834934,-266.95,0.00034214,60]
[391781149,1760803834943,-216.99,0.00034215,60]
[391781150,1760803834952,-151.4,0.0003431,60]
[391781151,1760803834962,-266.95,0.00034314,60]
[391781152,1760803834971,-216.99,0.00034315,60]
[391781153,1760803834980,-155.5330289,0.00034356,30]
[391781154,1760803834990,-1500.0,0.00034368,5]
[391781155,1760803834999,-1500.0,0.00034368,5]
[391781156,1760803835008,-151.4,0.0003441,60]
[391781157,1760803835017,-267.09,0.00034414,60]
[391781158,1760803835027,-217.05,0.00034415,60]
[391781159,1760803835036,-162.9393636,0.00034438,30]
[391781160,1760803835046,-162.9393636,0.00034438,30]
[391781161,1760803835055,-151.4,0.0003451,60]
[391781162,1760803835064,-155.5330289,0.00034548,30]
[391781163,1760803835073,-1162.67737126,0.0003455,2]
[391781164,1760803835082,-168.0,0.00034581,2]
[391781165,1760803835091,-150.0,0.00034593,2]
[391781166,1760803835100,-150.0,0.00034593,2]
[391781167,1760803835109,-982.0,0.00034593,2]
[391781168,1760803835118,-2162.0,0.00034593,2]
[391781169,1760803835127,-160.0,0.000346,120]
[391781170,1760803835137,-1692.75,0.000346,2]
[391781171,1760803835146,-152.0,0.000346,120]
[391781172,1760803835155,-151.4,0.0003461,60]
[391781173,1760803835167,-151.4,0.0003471,60]
[391781174,1760803835177,-155.5330289,0.00034712,30]
[391781175,1760803835186,-256.0,0.00034751,2]
[391781176,1760803835196,-168.0,0.00034802,2]
[391781177,1760803835205,-151.4,0.0003481,60]
[391781178,1760803835214,-168.0,0.00034823,2]
[391781179,1760803835224,-4788.59,0.00034831,120]
[391781180,1760803835233,-1444.0,0.00034849,120]
[391781181,1760803835242,-155.5330289,0.00034877,30]
[391781182,1760803835252,-12993.3472944,0.0003489,2]
[391781183,1760803835261,-1749.82622474,0.0003489,2]
[391781184,1760803835271,-2000.0,0.000349,14]
[391781185,1760803835279,-151.4,0.0003491,60]
[391781186,1760803835289,-2000.0,0.00034916,5]
[391781187,1760803835298,-2000.0,0.00034916,5]
[391781188,1760803835307,-1162.67737126,0.0003498,2]
[391781189,1760803835317,-168.0,0.0003499,2]
[391781190,1760803835326,-202.72481138,0.00035,2]
[391781191,1760803835335,-154.549134,0.00035,7]
[391781192,1760803835344,-151.4,0.0003501,60]
[391781193,1760803835354,-196.0,0.0003506,39]
[391781194,1760803835364,-168.0,0.00035061,2]
[391781195,1760803835374,-200.0,0.00035072,120]
[391781196,1760803835383,-151.4,0.0003511,60]
[391781197,1760803835392,-256.0,0.00035156,2]
[391781198,1760803835402,-151.4,0.0003521,60]
[391781199,1760803835411,-168.0,0.0003527,2]
[391781200,1760803835420,-151.4,0.0003531,60]
[391781201,1760803835430,-829.79819486,0.00035357,30]
[391781202,1760803835440,-256.0,0.00035396,7]
[391781203,1760803835449,-168.0,0.00035403,2]
[391781204,1760803835458,-151.4,0.0003541,60]
[391781205,1760803835468,-1162.67737126,0.0003541,2]
[391781206,1760803835477,-340.0,0.00035453,7]
[391781207,1760803835487,-2500.0,0.00035464,5]
[391781208,1760803835496,-2500.0,0.00035464,5]
[391781209,1760803835506,-151.4,0.0003551,60]
[391781210,1760803835515,-168.0,0.00035538,2]
[391781211,1760803835524,-312.65866,0.000356,120]
[391781212,1760803835534,-151.4,0.0003561,60]
[391781213,1760803835543,-500.0,0.00035616,120]
[391781214,1760803835553,-500.0,0.00035616,120]
[391781215,1760803835563,-160.0,0.00035653,3]
[391781216,1760803835572,-4616.91,0.000357,14]
[391781217,1760803835582,-151.4,0.0003571,60]
[391781218,1760803835591,-168.0,0.00035752,2]
[391781219,1760803835600,-4788.59,0.0003579,120]
[391781220,1760803835610,-151.4,0.0003581,60]
[391781221,1760803835619,-200.0,0.00035821,120]
[391781222,1760803835629,-1000.0,0.0003584,30]
[391781223,1760803835638,-244.0,0.0003584,30]
[391781224,1760803835648,-157.252713,0.00035844,2]
[391781225,1760803835658,-154.549134,0.00035844,2]
[391781226,1760803835671,-1106.0,0.000359,16]
[391781227,1760803835680,-168.0,0.00035909,2]
[391781228,1760803835690,-151.4,0.0003591,60]
[391781229,1760803835700,-5000.0,0.0003595,4]
[391781230,1760803835710,-262.78494972,0.00036,2]
[391781231,1760803835719,-151.4,0.0003601,60]
[391781232,1760803835730,-3000.0,0.00036012,5]
[391781233,1760803835739,-3000.0,0.00036012,5]
[391781234,1760803835748,-151.4,0.0003611,60]
[391781235,1760803835758,-151.4,0.0003621,60]
[391781236,1760803835768,-151.4,0.0003631,60]
[391781237,1760803835778,-1692.75,0.000364,2]
[391781238,1760803835788,-151.4,0.0003641,60]
[391781239,1760803835802,-170.63,0.00036448,2]
[391781240,1760803835812,-151.4,0.0003651,60]
[391781241,1760803835822,-3500.0,0.0003656,5]
[391781242,1760803835831,-2529.50172497,0.0003656,5]
[391781251,1760803837609,-200.0,0.000305,120]
[391781253,1760803837629,-2068.35815529,0.000333,14]
[391781255,1760803837676,-16492.68184471,0.000333,14]
[391781256,1760803837686,-18561.04,0.000346,14]
[391781257,1760803837696,-18561.04,0.000359,14]
[391781258,1760803837840,-496.34318608,0.0003656,5]
[391781259,1760803837851,-151.4,0.0003661,60]
[391781260,1760803837861,-1613.0,0.00036623,2]
[391781261,1760803837873,-500.0,0.00036696,30]
[391781262,1760803837882,-394.44,0.000367,16]
[391781263,1760803837892,-151.4,0.0003671,60]
[391781264,1760803837901,-4788.59,0.00036749,120]
[391781265,1760803837911,-772.25570428,0.00036757,2]
[391781266,1760803837920,-12993.3472944,0.00036805,3]
[391781267,1760803837930,-1749.82622474,0.00036805,3]
[391781268,1760803837947,-151.4,0.0003681,60]
[391781269,1760803837960,-10700.11252974,0.00036815,2]
[391781270,1760803837970,-165.74807209,0.00036822,2]
[391781271,1760803837979,-151.93633695,0.0003691,60]
[391781272,1760803837989,-262.78494972,0.00037,120]
[391781273,1760803837998,-4000.0,0.00037108,5]
[391781274,1760803838008,-200.0,0.00037251,120]
[391781275,1760803838017,-312.65866,0.000373,120]
[391781276,1760803838027,-18561.04,0.000373,14]
[391781277,1760803838037,-500.0,0.00037325,30]
[391781278,1760803838046,-200.0,0.00037357,120]
[391781279,1760803838056,-200.0,0.00037357,120]
[391781280,1760803838065,-200.0,0.00037357,120]
[391781281,1760803838075,-196.0,0.0003744,46]
[391781282,1760803838085,-4616.91,0.000375,14]
[391781283,1760803838095,-157.252713,0.000375,7]
[391781284,1760803838106,-154.549134,0.000375,7]
[391781285,1760803838115,-1186.75000372,0.00037656,5]
[391781286,1760803838125,-200.0,0.00037683,120]
[391781287,1760803838135,-4788.59,0.00037707,120]
[391781288,1760803838145,-500.0,0.00038063,30]
[391781289,1760803838155,-1100.0,0.00038082,7]
[391781290,1760803838165,-152.0,0.000381,120]
[391781291,1760803838175,-200.0,0.0003815,120]
[391781292,1760803838185,-200.0,0.0003815,120]
[391781293,1760803838194,-200.0,0.0003815,120]
[391781294,1760803838204,-151.0,0.000383,18]
[391781295,1760803838214,-800.0,0.00038372,7]